bitfinex/quotes_SOLUSD_20241020
["timestamp","ask_amount","ask_price","bid_price","bid_amount"]
[1729400288306,29.421984,159.43,159.42,0.6149578]
[1729400290517,51.282284,159.43,159.42,0.6149578]
[1729400294328,23.776884,159.43,159.42,0.6149578]
[1729400294520,5.644,159.46,159.42,0.6149578]
[1729400296426,23.776884,159.45,159.42,0.6149578]
[1729400299412,21.1348,159.47,159.42,0.6149578]
[1729400299614,23.776884,159.46,159.42,0.6149578]
[1729400300420,23.776884,159.47,159.43,5.645]
[1729400303426,23.776884,159.48,159.43,5.645]
[1729400308141,23.776884,159.48,159.42,0.6149578]
[1729400308520,29.420184,159.48,159.43,5.645]
[1729400318239,5.6427,159.5,159.45,5.6443]
[1729400319938,23.776884,159.49,159.45,5.6443]
[1729400321241,23.776884,159.5,159.46,5.6437]
[1729400330160,23.776884,159.5,159.42,0.6149578]
[1729400330464,23.776884,159.5,159.46,5.6437]
[1729400330651,6.67735827,159.52,159.43,14.2185]
[1729400330850,6.67735827,159.52,159.48,5.643]
[1729400331558,6.67735827,159.52,159.43,14.2185]
[1729400331559,6.67735827,159.52,159.49,5.6427]
[1729400331866,200.0,159.54,159.5,5.6426]
[1729400332045,23.776884,159.53,159.49,5.6429]
[1729400335465,23.776884,159.53,159.47,14.1085]
[1729400335669,29.418684,159.53,159.47,19.7518]
[1729400338149,23.776884,159.51,159.47,14.1085]
[1729400344077,29.419284,159.51,159.47,14.1085]
[1729400348374,5.6426,159.5,159.44,14.1117]
[1729400348685,23.776884,159.49,159.45,5.6442]
[1729400350776,5.6436,159.48,159.42,6.2603578]
[1729400350958,23.776884,159.47,159.42,6.2603578]
[1729400352578,23.776884,159.47,159.43,5.6449]
[1729400353963,23.776884,159.47,159.43,5.645]
[1729400354884,23.776884,159.47,159.42,14.7284578]
[1729400354885,29.420584,159.47,159.42,20.3738578]
[1729400369084,23.776884,159.47,159.42,14.7284578]
[1729400369296,23.776884,159.45,159.42,14.7284578]
[1729400376511,6.4101,159.5,159.42,0.6149578]
[1729400376798,6.3101,159.5,159.46,5.644]
[1729400377298,16.1339,159.51,159.47,5.6436]
[1729400378272,23.776884,159.5,159.47,5.6436]
[1729400379075,23.776884,159.5,159.46,5.644]
[1729400393408,23.776884,159.5,159.42,20.6149578]
[1729400393601,23.776884,159.5,159.47,5.6434]
[1729400396594,23.776884,159.5,159.46,19.7535]
[1729400401494,23.776884,159.5,159.47,5.6436]
[1729400402914,23.776884,159.53,159.49,5.6429]
[1729400404296,5.6423,159.51,159.46,5.644]
[1729400404495,23.776884,159.53,159.43,14.2185]
[1729400404695,23.776884,159.53,159.44,20.0]
[1729400405517,29.418484,159.53,159.48,5.6432]
[1729400406506,23.776884,159.53,159.48,5.643]
[1729400407807,23.776884,159.53,159.49,5.6429]
[1729400408518,29.418484,159.53,159.48,5.6433]
[1729400409932,23.776884,159.53,159.48,5.6433]
[1729400410306,23.776884,159.53,159.49,5.6427]
[1729400421326,29.418384,159.53,159.48,19.7512]
[1729400423042,23.776884,159.53,159.49,5.6429]
[1729400423906,23.776884,159.53,159.5,5.6425]
[1729400424112,200.0,159.54,159.47,34.2185]
[1729400424314,200.0,159.54,159.51,5.642]
[1729400424514,200.0,159.54,159.47,34.2185]
[1729400425428,200.0,159.54,159.52,5.6418]
[1729400430516,200.0,159.54,159.47,34.2185]
[1729400430842,200.0,159.54,159.53,5.6415]
[1729400445132,200.0,159.54,159.53,25.6415]
[1729400450627,200.0,159.54,159.53,5.6415]
[1729400450827,200.0,159.54,159.53,25.6415]
[1729400490981,200.0,159.54,159.53,5.6415]
[1729400492269,215.2065,159.54,159.53,5.6415]
[1729400492499,215.2065,159.54,159.52,14.1044]
[1729400511701,227.2509,159.54,159.5,0.2878061]
[1729400517289,221.6095,159.54,159.5,0.2878061]
[1729400517595,215.2065,159.54,159.5,0.2878061]
[1729400517898,200.0,159.54,159.5,0.2878061]
[1729400563741,21.9884,159.77,159.68,0.1]
[1729400563953,25.2284,159.82,159.73,0.1]
[1729400564121,0.00921162,159.82,159.74,26.32899731]
[1729400564443,0.00921162,159.82,159.73,0.1]
[1729400564816,0.00921162,159.82,159.74,18.79697526]
[1729400565548,0.00921162,159.82,159.73,0.1]
[1729400567519,6.0017,159.84,159.74,0.1]
[1729400567722,6.0017,159.84,159.75,20.0]
[1729400567950,6.0017,159.84,159.75,29.43874515]
[1729400568149,6.0017,159.84,159.76,0.1]
[1729400568649,6.0017,159.84,159.77,20.0]
[1729400570448,0.3331984,159.91,159.9,0.1]
[1729400571354,0.3331984,159.91,159.9,20.1]
[1729400572642,0.3331984,159.91,159.9,20.46546508]
[1729400572855,0.3331984,159.91,159.9,0.46546508]
[1729400574126,36.0017,160.0,159.94,0.1]
[1729400574321,36.0017,160.0,159.92,0.46541937]
[1729400574520,36.0017,160.0,159.93,0.1]
[1729400575030,36.0017,160.0,159.94,0.1]
[1729400575550,36.0017,160.0,159.93,0.1]
[1729400576425,36.0017,160.0,159.92,0.46541937]
[1729400576947,36.0017,160.0,159.93,0.1]
[1729400577328,23.776884,159.99,159.92,0.36541937]
[1729400578144,23.776884,159.99,159.92,0.46541937]
[1729400578441,23.776884,159.99,159.92,0.36541937]
[1729400578848,23.776884,159.99,159.92,0.46541937]
[1729400579345,23.776884,159.99,159.92,0.36541937]
[1729400584440,29.402384,159.99,159.92,0.36541937]
[1729400585427,23.776884,159.97,159.92,0.36541937]
[1729400587342,23.776884,159.95,159.92,0.36541937]
[1729400587528,0.1,159.99,159.8,20.1]
[1729400587529,23.776884,159.93,159.8,20.1]
[1729400587855,23.776884,159.93,159.83,2.50241]
[1729400588055,15.7281,159.92,159.82,0.1]
[1729400588353,30.191984,159.91,159.79,9.43874515]
[1729400589237,30.191984,159.91,159.79,9.33874515]
[1729400590336,30.191984,159.91,159.74,26.43744445]
[1729400590337,30.191984,159.91,159.8,0.36569378]
[1729400590542,23.776884,159.88,159.8,0.36569378]
[1729400590931,23.776884,159.89,159.8,0.36569378]
[1729400592362,23.776884,159.87,159.8,0.36569378]
[1729400592577,23.776884,159.87,159.75,0.36580824]
[1729400593439,29.406384,159.87,159.75,0.36580824]
[1729400593752,23.776884,159.88,159.75,0.36580824]
[1729400593958,23.776884,159.89,159.75,0.46580824]
[1729400594160,23.776884,159.89,159.76,0.1]
[1729400594358,29.405784,159.89,159.76,0.1]
[1729400594561,23.776884,159.89,159.75,20.46580824]
[1729400594754,29.405384,159.9,159.75,20.46580824]
[1729400595070,23.776884,159.9,159.76,0.1]
[1729400595269,16.3621,159.89,159.75,0.36580824]
[1729400595452,23.776884,159.88,159.75,0.36580824]
[1729400595957,23.776884,159.88,159.75,0.46580824]
[1729400596144,23.776884,159.88,159.76,0.1]
[1729400596345,23.776884,159.88,159.75,0.36580824]
[1729400596346,23.776884,159.88,159.75,0.46580824]
[1729400596649,23.776884,159.88,159.75,0.36580824]
[1729400596848,23.776884,159.88,159.75,20.46580824]
[1729400598451,23.776884,159.88,159.76,0.1]
[1729400598655,23.776884,159.88,159.75,20.46580824]
[1729400598852,23.776884,159.88,159.75,20.36580824]
[1729400600443,23.776884,159.88,159.76,0.1]
[1729400602864,23.776884,159.88,159.77,0.1]
[1729400603068,23.776884,159.88,159.77,20.1]
[1729400603651,23.776884,159.88,159.78,0.1]
[1729400604647,23.776884,159.88,159.78,15.6165]
[1729400604867,16.3621,159.89,159.79,20.1]
[1729400606172,16.3621,159.89,159.79,29.43874515]
[1729400607270,16.3621,159.89,159.8,0.1]
[1729400607777,16.3621,159.89,159.79,29.43874515]
[1729400609053,16.3621,159.89,159.8,0.1]
[1729400609754,16.3621,159.89,159.79,29.43874515]
[1729400609953,16.3621,159.89,159.8,0.1]
[1729400611975,16.3621,159.89,159.79,29.43874515]
[1729400612169,16.3621,159.89,159.8,0.1]
[1729400613857,6.4151,159.91,159.81,20.1]
[1729400614185,6.4151,159.91,159.82,0.1]
[1729400614363,16.1605,159.93,159.83,20.1]
[1729400614563,16.1605,159.93,159.84,0.1]
[1729400615693,36.5275289,160.0,159.97,0.1]
[1729400615988,30.0,160.0,159.98,29.33874515]
[1729400616469,30.0,160.0,159.99,0.1]
[1729400616672,30.0,160.0,159.99,53.31562915]
[1729400617362,5.6182,160.2,159.99,53.31562915]
[1729400617363,5.6181,160.2,160.06,0.1]
[1729400618176,0.1,160.22,160.06,0.1]
[1729400618177,5.6174,160.22,160.06,29.43874515]
[1729400618369,5.7174,160.22,160.06,29.43874515]
[1729400618683,7.0896045,160.23,160.06,29.8038449]
[1729400618684,5.7177,160.21,160.06,29.8038449]
[1729400619174,5.6177,160.21,160.06,29.8038449]
[1729400619788,12.8067045,160.23,160.06,29.8038449]
[1729400619990,5.6174,160.22,160.06,29.8038449]
[1729400620469,12.7066045,160.23,160.06,29.8038449]
[1729400621064,0.25592028,160.07,160.06,38.01462366]
[1729400621492,0.25592028,160.07,160.06,38.11462366]
[1729400622192,7.0896045,160.23,160.1,0.2]
[1729400622487,7.0896045,160.23,160.12,0.1]
[1729400622684,7.0896045,160.23,160.13,0.1]
[1729400623893,7.0896045,160.23,160.12,0.1]
[1729400625592,7.0896045,160.23,160.09,0.1]
[1729400625593,23.776884,160.22,160.13,0.1]
[1729400626170,23.776884,160.22,160.12,0.1]
[1729400626576,23.776884,160.22,160.13,0.1]
[1729400626781,7.0896045,160.23,160.12,0.1]
[1729400627077,7.0896045,160.23,160.11,0.1]
[1729400628084,23.776884,160.22,160.11,0.1]
[1729400628478,23.776884,160.22,160.12,0.1]
[1729400628896,23.776884,160.22,160.11,0.1]
[1729400629076,23.776884,160.22,160.12,0.1]
[1729400629276,23.776884,160.22,160.11,0.1]
[1729400629777,23.776884,160.22,160.1,0.1]
[1729400629987,29.394484,160.22,160.09,0.1]
[1729400630297,23.776884,160.22,160.1,0.1]
[1729400631078,23.776884,160.22,160.09,9.43874515]
[1729400631273,23.776884,160.22,160.11,20.0]
[1729400631974,23.776884,160.22,160.12,20.0]
[1729400634688,29.394084,160.22,160.12,20.0]
[1729400639188,7.0896045,160.23,160.12,20.0]
[1729400639907,0.6210045,160.23,160.14,20.0]
[1729400640118,0.6210045,160.23,160.14,29.33874515]
[1729400642299,5.6177,160.21,160.14,29.33874515]
[1729400642629,23.776884,160.22,160.14,29.33874515]
[1729400649518,23.776884,160.22,160.13,0.1]
[1729400650717,23.776884,160.22,160.14,20.0]
[1729400653811,23.776884,160.2,160.09,0.1]
[1729400654008,23.776884,160.2,160.09,20.1]
[1729400654217,23.776884,160.2,160.1,20.0]
[1729400654894,23.776884,160.2,160.11,0.1]
[1729400655411,23.776884,160.2,160.11,20.1]
[1729400656617,23.776884,160.2,160.11,20.0]
[1729400657315,23.776884,160.2,160.11,20.1]
[1729400657497,23.776884,160.2,160.11,20.0]
[1729400657698,23.776884,160.2,160.11,20.1]
[1729400658912,23.776884,160.2,160.11,20.0]
[1729400659111,23.776884,160.2,160.11,20.1]
[1729400659416,23.776884,160.18,160.11,20.0]
[1729400659613,30.254284,160.18,160.11,20.0]
[1729400664601,30.254284,160.18,160.11,20.1]
[1729400665027,30.254284,160.18,160.12,20.0]
[1729400672326,23.776884,160.16,160.08,0.1]
[1729400672527,23.776884,160.16,160.07,0.1]
[1729400673811,23.776884,160.16,160.07,20.1]
[1729400674838,23.776884,160.16,160.07,20.0]
[1729400675015,23.776884,160.16,160.05,0.1]
[1729400675334,29.396484,160.16,160.04,6.5188224]
[1729400675531,29.396484,160.16,160.03,0.1]
[1729400675833,29.396484,160.16,160.01,9.33874515]
[1729400675834,23.776884,160.13,160.02,0.1]
[1729400676033,15.1645,160.12,160.01,9.33874515]
[1729400676219,6.4703,160.08,160.01,9.33874515]
[1729400676425,23.776884,160.07,160.01,9.33874515]
[1729400677719,23.776884,160.07,160.02,20.0]
[1729400679221,23.776884,160.07,159.98,20.0]
[1729400680450,6.4703,160.08,160.0,0.1]
[1729400680738,6.4703,160.08,159.99,0.1]
[1729400680923,6.4703,160.08,159.98,29.43874515]
[1729400681127,6.4703,160.08,159.99,0.1]
[1729400681327,6.4703,160.08,159.98,29.43874515]
[1729400681636,23.776884,160.07,159.98,29.43874515]
[1729400681838,23.776884,160.07,159.98,29.33874515]
[1729400682147,23.776884,160.07,159.98,29.43874515]
[1729400682328,23.776884,160.07,159.98,29.33874515]
[1729400682524,23.776884,160.07,159.98,29.43874515]
[1729400686540,21.6348,160.12,160.01,0.1]
[1729400686744,21.6348,160.12,160.0,0.1]
[1729400686745,21.6348,160.12,160.02,9.43874515]
[1729400687043,21.6348,160.12,160.03,20.0]
[1729400687225,21.6348,160.12,160.03,29.43874515]
[1729400687427,21.6348,160.12,160.04,9.33874515]
[1729400687624,21.6348,160.16,160.08,0.1]
[1729400687844,21.6348,160.16,160.05,20.1]
[1729400688140,21.6348,160.16,160.06,0.1]
[1729400688532,21.6348,160.16,160.05,20.1]
[1729400688734,21.6348,160.16,160.06,0.1]
[1729400689326,23.776884,160.15,160.06,0.1]
[1729400691341,23.776884,160.15,160.05,20.1]
[1729400691549,23.776884,160.15,160.05,29.43874515]
[1729400692749,23.776884,160.15,160.06,0.1]
[1729400694142,23.776884,160.15,160.05,29.43874515]
[1729400694348,23.776884,160.15,160.06,0.1]
[1729400694552,23.776884,160.15,160.05,29.43874515]
[1729400696539,23.776884,160.15,160.06,0.1]
[1729400696845,23.776884,160.15,160.07,20.0]
[1729400699055,23.776884,160.15,160.07,29.33874515]
[1729400703329,23.776884,160.15,160.07,29.43874515]
[1729400704159,23.776884,160.15,160.07,29.33874515]
[1729400704454,23.776884,160.15,160.07,29.43874515]
[1729400707739,23.776884,160.15,160.07,29.33874515]
[1729400707939,23.776884,160.15,160.07,29.43874515]
[1729400708151,23.776884,160.15,160.07,29.33874515]
[1729400718275,23.776884,160.15,160.07,29.43874515]
[1729400719848,23.776884,160.15,160.07,29.33874515]
[1729400720050,23.776884,160.15,160.07,29.43874515]
[1729400723860,23.776884,160.15,160.09,20.0]
[1729400724261,21.6348,160.16,160.09,20.0]
[1729400724574,21.6348,160.16,160.09,20.1]
[1729400725252,6.2379045,160.23,160.09,20.1]
[1729400725253,21.3012,160.2,160.12,0.1]
[1729400725455,21.3012,160.2,160.14,0.1]
[1729400725661,21.3012,160.2,160.15,9.33874515]
[1729400725859,21.3012,160.2,160.16,20.0]
[1729400726074,21.3012,160.2,160.16,29.33874515]
[1729400728949,21.3012,160.2,160.14,0.1]
[1729400729560,21.3012,160.2,160.12,9.33874515]
[1729400729561,23.776884,160.19,160.12,9.33874515]
[1729400731156,21.3012,160.2,160.13,20.0]
[1729400731357,21.3012,160.2,160.13,9.33874515]
[1729400731557,21.3012,160.2,160.14,20.0]
[1729400732378,21.3012,160.2,160.15,20.0]
[1729400733269,21.3012,160.2,160.15,9.33874515]
[1729400733467,21.3012,160.2,160.16,20.0]
[1729400733773,21.3012,160.2,160.16,29.33874515]
[1729400734379,0.6210045,160.23,160.16,29.33874515]
[1729400735352,0.6210045,160.23,160.16,20.0]
[1729400735571,0.6210045,160.23,160.18,20.0]
[1729400735781,0.6210045,160.23,160.2,20.0]
[1729400736455,0.6210045,160.23,160.21,20.0]
[1729400736870,0.6210045,160.23,160.22,29.33874515]
[1729400737261,0.3681045,160.23,160.22,29.33874515]
[1729400756598,0.3681045,160.23,160.22,30.68645214]
[1729400756792,0.3681045,160.23,160.22,29.33874515]
[1729400757375,0.3681045,160.23,160.22,30.68640979]
[1729400758272,0.3681045,160.23,160.22,34.19726827]
[1729400760396,0.3681045,160.23,160.22,34.29726827]
[1729400760595,0.83863967,160.3,160.25,0.1]
[1729400760787,0.83863967,160.3,160.26,9.33874515]
[1729400761114,0.83863967,160.3,160.27,20.0]
[1729400763004,0.83863967,160.3,160.27,9.33874515]
[1729400763200,0.83863967,160.3,160.28,20.0]
[1729400769428,0.83863967,160.3,160.23,1.44738446]
[1729400769429,0.83863967,160.3,160.23,20.2]
[1729400769747,0.83863967,160.3,160.23,0.2]
[1729400770609,0.83863967,160.3,160.23,9.53874515]
[1729400770830,0.83863967,160.3,160.24,20.0]
[1729400771215,0.83863967,160.3,160.24,20.1]
[1729400771431,0.83863967,160.3,160.24,9.33874515]
[1729400771616,0.83863967,160.3,160.25,20.0]
[1729400773323,0.83863967,160.3,160.25,9.33874515]
[1729400773634,0.83863967,160.3,160.26,20.0]
[1729400775487,0.83863967,160.3,160.26,29.33874515]
[1729400776308,0.83863967,160.3,160.27,9.33874515]
[1729400776611,0.83863967,160.3,160.28,20.0]
[1729400776790,0.83863967,160.3,160.28,29.33874515]
[1729400777309,0.83863967,160.3,160.29,29.33874515]
[1729400779592,0.83863967,160.3,160.29,30.78596166]
[1729400779593,0.03003967,160.3,160.29,30.78596166]
[1729400779796,0.01362408,160.3,160.29,30.78596166]
[1729400780117,0.01362408,160.3,160.29,30.68596166]
[1729400780313,0.01362408,160.3,160.29,30.78596166]
[1729400781515,0.01362408,160.3,160.29,29.53874515]
[1729400781699,0.01362408,160.3,160.29,29.43874515]
[1729400781897,0.01362408,160.3,160.29,30.78582709]
[1729400782088,0.01362408,160.3,160.29,30.68582709]
[1729400782298,0.01362408,160.3,160.29,30.78582709]
[1729400782997,0.01362408,160.3,160.29,29.53874515]
[1729400783509,0.01362408,160.3,160.29,29.43874515]
[1729400783696,0.01362408,160.3,160.29,34.13663594]
[1729400783899,0.01362408,160.3,160.29,34.23663594]
[1729400784399,0.01362408,160.3,160.29,34.13663594]
[1729400785393,0.01362408,160.3,160.29,29.33874515]
[1729400785603,0.01362408,160.3,160.25,22.394]
[1729400785802,0.01362408,160.3,160.24,8.30052485]
[1729400785803,0.01362408,160.3,160.24,9.43874515]
[1729400786314,0.01362408,160.3,160.25,9.33874515]
[1729400787012,0.01362408,160.3,160.26,20.0]
[1729400787912,0.01362408,160.3,160.27,20.0]
[1729400788115,0.01362408,160.3,160.27,9.33874515]
[1729400788314,0.01362408,160.3,160.28,20.0]
[1729400790814,0.01362408,160.3,160.23,6.50828638]
[1729400791016,0.01362408,160.3,160.23,15.84703153]
[1729400791316,0.01362408,160.3,160.24,9.33874515]
[1729400792194,0.01362408,160.3,160.25,20.0]
[1729400792414,0.01362408,160.3,160.25,9.33874515]
[1729400792821,0.01362408,160.3,160.26,20.0]
[1729400793796,0.01362408,160.3,160.27,29.33874515]
[1729400795316,0.01362408,160.3,160.27,29.43874515]
[1729400796495,0.01362408,160.3,160.27,29.53874515]
[1729400797120,0.01362408,160.3,160.27,29.33874515]
[1729400798412,0.01362408,160.3,160.27,9.33874515]
[1729400798615,0.01362408,160.3,160.23,6.61032947]
[1729400798800,0.01362408,160.3,160.23,15.94907462]
[1729400798801,22.0304,160.29,160.23,15.94907462]
[1729400799318,22.0304,160.29,160.24,9.33874515]
[1729400799806,22.0304,160.29,160.23,6.51032947]
[1729400800010,22.0304,160.29,160.19,10.52289639]
[1729400800212,22.0304,160.29,160.2,6.51196093]
[1729400800419,22.0304,160.29,160.2,15.85070608]
[1729400801421,22.0304,160.29,160.21,20.0]
[1729400801620,22.0304,160.29,160.21,29.33874515]
[1729400802015,23.776884,160.28,160.21,29.33874515]
[1729400802218,23.776884,160.28,160.21,9.33874515]
[1729400803101,22.0304,160.27,160.21,9.33874515]
[1729400804310,22.0304,160.27,160.22,20.0]
[1729400820017,22.0304,160.27,160.23,20.0]
[1729400822043,21.41142408,160.3,160.23,20.0]
[1729400825249,23.776884,160.25,160.19,1.08489689]
[1729400825440,15.1706,160.23,160.19,1.08489689]
[1729400825638,15.1706,160.23,160.13,0.1]
[1729400825937,15.1706,160.23,160.17,1.08523912]
[1729400826144,15.1706,160.23,160.13,8.9201896]
[1729400826333,15.1706,160.23,160.14,6.51450084]
[1729400826517,23.776884,160.22,160.15,20.0]
[1729400826843,23.776884,160.22,160.14,6.51450084]
[1729400826844,23.776884,160.22,160.14,20.0]
[1729400827044,23.776884,160.22,160.13,9.90542773]
[1729400828360,23.776884,160.22,160.14,20.0]
[1729400828605,23.776884,160.22,160.15,20.0]
[1729400828884,15.1706,160.23,160.17,20.0]
[1729400831871,15.1706,160.23,160.18,20.0]
[1729400832561,6.2272,160.24,160.18,20.0]
[1729400832562,6.2272,160.24,160.18,28.8201896]
[1729400833463,6.2272,160.24,160.13,1.08523813]
[1729400833464,6.2272,160.24,160.2,20.0]
[1729400833659,6.2272,160.24,160.2,28.8201896]
[1729400839733,6.2272,160.24,160.21,8.8201896]
[1729400840154,6.2272,160.24,160.22,20.0]
[1729400840654,15.1706,160.27,160.22,28.8201896]
[1729400849041,15.1706,160.27,160.16,8.8201896]
[1729400849862,15.1706,160.27,160.16,8.9201896]
[1729400850262,15.1706,160.27,160.17,8.8201896]
[1729400850474,15.1706,160.27,160.16,0.1]
[1729400850757,15.1706,160.27,160.16,20.1]
[1729400852749,15.1706,160.27,160.17,0.1]
[1729400855058,15.1706,160.27,160.18,0.1]
[1729400855275,15.1706,160.27,160.18,20.1]
[1729400855571,15.1706,160.27,160.19,0.1]
[1729400855773,15.1706,160.27,160.19,20.1]
[1729400856063,15.1706,160.27,160.2,0.1]
[1729400857264,15.1706,160.27,160.19,0.1]
[1729400857449,15.1706,160.27,160.2,0.1]
[1729400858051,15.1706,160.27,160.19,0.1]
[1729400858666,0.01362408,160.3,160.25,0.1]
[1729400858850,0.01362408,160.3,160.23,0.1]
[1729400859050,0.01362408,160.3,160.22,0.1]
[1729400859051,0.01362408,160.3,160.25,20.0]
[1729400859647,0.01362408,160.3,160.24,0.1]
[1729400860363,0.01362408,160.3,160.26,0.1]
[1729400860756,0.01362408,160.3,160.28,0.1]
[1729400861057,0.01362408,160.3,160.28,20.0]
[1729400861873,0.01362408,160.3,160.27,20.2]
[1729400862372,0.01362408,160.3,160.27,0.2]
[1729400862867,0.01362408,160.3,160.26,0.1]
[1729400863041,0.01362408,160.3,160.22,0.1]
[1729400863361,0.01362408,160.3,160.23,0.1]
[1729400865762,0.01362408,160.3,160.22,24.93858331]
[1729400865959,0.01362408,160.3,160.2,0.1]
[1729400865960,15.7881,160.29,160.2,0.1]
[1729400866266,6.51,160.28,160.2,0.1]
[1729400870274,6.51,160.28,160.18,7.59617366]
[1729400871763,6.51,160.28,160.19,20.0]
[1729400874275,23.776884,160.27,160.19,20.0]
[1729400876664,15.0161,160.26,160.19,20.0]
[1729400876858,23.776884,160.23,160.18,1.08469785]
[1729400877056,23.776884,160.23,160.12,6.65485648]
[1729400877378,23.776884,160.23,160.16,7.59912427]
[1729400877671,6.4214,160.24,160.16,7.59912427]
[1729400877864,6.4214,160.24,160.17,8.33315263]
[1729400878071,6.4214,160.24,160.18,20.0]
[1729400878254,6.4214,160.24,160.17,20.0]
[1729400879353,6.4214,160.24,160.16,0.1]
[1729400881256,6.4214,160.24,160.18,20.0]
[1729400882381,6.4214,160.24,160.17,0.1]
[1729400883059,21.4375,160.29,160.19,0.1]
[1729400883259,21.4375,160.29,160.19,20.2]
[1729400883566,23.776884,160.28,160.16,0.1]
[1729400887674,23.776884,160.28,160.15,0.1]
[1729400890181,23.776884,160.26,160.13,20.1]
[1729400890503,21.4375,160.25,160.12,24.90865071]
[1729400890975,23.776884,160.24,160.12,4.90865071]
[1729400891164,23.776884,160.24,160.1,0.1]
[1729400891369,23.776884,160.23,160.09,0.1]
[1729400891567,23.776884,160.21,160.09,5.01555637]
[1729400891790,23.776884,160.21,160.09,0.1]
[1729400892988,23.776884,160.21,160.09,20.1]
[1729400894398,23.776884,160.21,160.09,20.0]
[1729400895887,23.776884,160.21,160.09,24.81568245]
[1729400896781,23.776884,160.21,160.1,0.1]
[1729400897100,23.776884,160.21,160.11,20.0]
[1729400897689,23.776884,160.21,160.1,0.1]
[1729400899379,23.776884,160.21,160.09,24.91568245]
[1729400901280,21.4375,160.22,160.11,0.1]
[1729400902781,23.776884,160.21,160.1,0.1]
[1729400909282,23.776884,160.21,160.09,4.81568245]
[1729400909491,23.776884,160.21,160.08,0.2]
[1729400910313,23.776884,160.21,160.1,20.0]
[1729400915610,23.776884,160.21,160.12,20.0]
[1729400915910,23.776884,160.21,160.12,28.81977505]
[1729400921692,23.776884,160.21,160.14,20.0]
[1729400923222,23.776884,160.21,160.15,20.0]
[1729400927319,21.4375,160.22,160.15,20.0]
[1729400927619,21.4375,160.22,160.17,20.0]
[1729400927995,21.4375,160.22,160.17,28.81977505]
[1729400929524,21.4375,160.22,160.19,20.0]
[1729400929706,21.7291,160.29,160.19,28.81977505]
[1729400929914,21.7291,160.29,160.21,20.0]
[1729400930916,23.776884,160.28,160.21,20.0]
[1729400931633,21.7291,160.29,160.21,28.81977505]
[1729400933015,23.776884,160.28,160.21,28.81977505]
[1729400938515,23.776884,160.26,160.21,28.81977505]
[1729400938725,23.776884,160.26,160.15,33.71656294]
[1729400938921,23.776884,160.26,160.15,28.81977505]
[1729400939445,23.776884,160.26,160.17,20.0]
[1729400940019,23.776884,160.26,160.17,8.81977505]
[1729400940215,23.776884,160.26,160.18,20.0]
[1729400940746,23.776884,160.26,160.18,28.81977505]
[1729400940924,23.776884,160.26,160.2,20.0]
[1729400941125,23.776884,160.26,160.21,20.0]
[1729400941320,23.776884,160.26,160.21,28.81977505]
[1729400942347,23.1068,160.27,160.21,28.81977505]
[1729400952131,23.1068,160.27,160.21,8.81977505]
[1729400952548,23.1068,160.27,160.22,8.33315263]
[1729400952741,23.1068,160.27,160.23,8.81977505]
[1729400952955,23.1068,160.27,160.23,17.15292768]
[1729400953755,23.1068,160.27,160.24,20.0]
[1729400954053,23.1068,160.27,160.26,20.0]
[1729400957739,0.01362408,160.3,160.26,20.0]
[1729400957946,0.01362408,160.3,160.27,20.0]
[1729400963742,23.79050808,160.3,160.27,20.0]
[1729400965271,0.01362408,160.3,160.27,20.0]
[1729400966061,0.01362408,160.3,160.21,20.0]
[1729400966259,0.01362408,160.3,160.21,28.32953061]
[1729400966867,23.79050808,160.3,160.23,20.0]
[1729400967045,23.79050808,160.3,160.23,28.32953061]
[1729400968957,0.01362408,160.3,160.24,8.32953061]
[1729400969270,0.01362408,160.3,160.25,20.0]